bitfinex-derivatives/quotes_SOLF0:USTF0_20260126
["timestamp","ask_amount","ask_price","bid_price","bid_amount"]
[1769394943494,3.43391437,122.53,122.47,7.6558397]
[1769394943684,4.07724187,122.55,122.48,3.57859783]
[1769394943889,4.07724187,122.55,122.48,7.6558397]
[1769394944092,3.43391437,122.55,122.48,3.57859783]
[1769394944288,7.51115624,122.55,122.48,7.6558397]
[1769394944798,7.51115624,122.57,122.5,7.6558397]
[1769394944994,3.43391437,122.57,122.5,7.6558397]
[1769394945299,3.43391437,122.57,122.51,4.07724187]
[1769394945599,3.43391437,122.57,122.51,7.6558397]
[1769394946092,7.3507,122.6,122.52,7.6558397]
[1769394946093,4.07724187,122.59,122.52,7.6558397]
[1769394946693,7.51115624,122.6,122.53,4.07724187]
[1769394946891,3.43391437,122.6,122.53,4.07724187]
[1769394947598,7.51115624,122.6,122.53,4.07724187]
[1769394947900,7.51115624,122.6,122.52,7.6558397]
[1769394948394,3.43391437,122.59,122.52,7.6558397]
[1769394948592,7.51115624,122.56,122.49,3.57859783]
[1769394949097,3.43391437,122.56,122.49,7.6558397]
[1769394949299,7.51115624,122.56,122.49,3.57859783]
[1769394949691,3.43391437,122.56,122.49,3.57859783]
[1769394954292,185.56,122.64,122.48,7.3571]
[1769394954293,3.43391437,122.59,122.51,3.57859783]
[1769394955096,3.43391437,122.61,122.53,3.57859783]
[1769394958106,3.43391437,122.61,122.56,0.05797232]
[1769394962208,3.43391437,122.61,122.51,10.93369783]
[1769394962409,3.43391437,122.59,122.51,10.93369783]
[1769394962908,3.43391437,122.59,122.51,3.57859783]
[1769394963905,10.78471437,122.59,122.51,3.57859783]
[1769394964104,0.06123039,122.56,122.51,3.57859783]
[1769394968404,3.56013316,122.56,122.48,3.61863514]
[1769394969010,3.49890277,122.56,122.48,3.61863514]
[1769394969410,0.05679334,122.53,122.48,3.61863514]
[1769394970610,3.55569611,122.53,122.46,3.61863514]
[1769394970801,3.49890277,122.52,122.43,3.61863514]
[1769394971001,0.05679334,122.53,122.45,3.61863514]
[1769394971313,3.49890277,122.54,122.46,3.61863514]
[1769394971505,0.05864868,122.5,122.46,3.61863514]
[1769394972904,0.05864868,122.5,122.46,7.69431175]
[1769394975010,0.05864868,122.5,122.46,3.61863514]
[1769394975210,0.05864868,122.5,122.44,4.07567661]
[1769394975514,7.63322806,122.5,122.44,3.61863514]
[1769394977609,7.63322806,122.5,122.42,4.07567661]
[1769394977610,4.07567661,122.49,122.42,7.80578655]
[1769394978212,7.57457938,122.5,122.42,7.80578655]
[1769394978517,0.0574532,122.47,122.42,7.80578655]
[1769394980008,0.0574532,122.47,122.42,15.16638655]
[1769394980917,0.0574532,122.47,122.43,3.73010994]
[1769394981218,7.57457938,122.5,122.43,3.73010994]
[1769394983813,3.8426513,122.49,122.43,3.73010994]
[1769394985019,7.91832791,122.49,122.41,497.67428044]
[1769394985220,3.8426513,122.48,122.41,497.67428044]
[1769394985720,3.8426513,122.48,122.41,202.62578655]
[1769394986110,3.8426513,122.48,122.42,3.73010994]
[1769394988623,7.91832791,122.48,122.41,194.82]
[1769394988921,3.8426513,122.47,122.41,194.82]
[1769394989115,7.91832791,122.47,122.41,194.82]
[1769394989827,3.8426513,122.47,122.4,7.80578655]
[1769394990116,3.8426513,122.47,122.41,3.73010994]
[1769394992724,3.8426513,122.47,122.41,7.80578655]
[1769394993523,3.8426513,122.47,122.41,4.07567661]
[1769394993920,3.8426513,122.47,122.4,7.89933157]
[1769394994526,7.91832791,122.47,122.4,7.89933157]
[1769394994823,7.91832791,122.47,122.4,3.82365496]
[1769394995624,3.8426513,122.47,122.4,3.82365496]
[1769394995923,3.8426513,122.47,122.4,7.89933157]
[1769394996527,3.98289849,122.46,122.4,3.82365496]
[1769394997013,8.0585751,122.46,122.4,3.82365496]
[1769394997627,3.98289849,122.46,122.4,3.82365496]
[1769394998426,3.98289849,122.46,122.4,7.90319148]
[1769394999125,11.34209849,122.45,122.38,3.82365496]
[1769394999327,11.34209849,122.45,122.38,7.90319148]
[1769395000323,8.06243501,122.49,122.42,7.90319148]
[1769395000526,3.98289849,122.49,122.43,4.07953652]
[1769395000728,8.06243501,122.49,122.42,7.90319148]
[1769395000929,3.98289849,122.48,122.42,7.90319148]
[1769395004530,3.98289849,122.47,122.4,7.90319148]
[1769395004729,3.98289849,122.46,122.4,3.82365496]
[1769395006431,8.06243501,122.46,122.4,3.82365496]
[1769395007236,3.98289849,122.45,122.38,15.26599148]
[1769395007533,3.98289849,122.45,122.38,7.90319148]
[1769395007737,8.06243501,122.44,122.38,3.82365496]
[1769395008431,3.98289849,122.43,122.36,7.90319148]
[1769395008731,8.06243501,122.42,122.36,7.90319148]
[1769395010430,3.98289849,122.41,122.34,3.82365496]
[1769395012034,8.06243501,122.44,122.37,3.82365496]
[1769395012234,3.98289849,122.43,122.37,3.82365496]
[1769395012635,3.98289849,122.43,122.36,4.07953652]
[1769395013533,4.07953652,122.42,122.36,4.07953652]
[1769395013837,8.06243501,122.42,122.35,7.90319148]
[1769395014034,8.06243501,122.42,122.36,3.82365496]
[1769395014236,3.98289849,122.42,122.36,3.82365496]
[1769395020744,3.98289849,122.4,122.33,7.90319148]
[1769395020947,8.06243501,122.4,122.33,7.90319148]
[1769395021241,11.34579849,122.39,122.33,3.82365496]
[1769395021436,11.34579849,122.39,122.32,4.07953652]
[1769395021437,8.06243501,122.38,122.32,4.07953652]
[1769395022534,8.06243501,122.38,122.32,7.90319148]
[1769395023249,3.98289849,122.38,122.32,7.90319148]
[1769395024245,4.06645036,122.4,122.34,4.05825029]
[1769395024549,8.14598688,122.42,122.35,4.05825029]
[1769395024744,4.06645036,122.41,122.35,4.05825029]
[1769395027551,4.06645036,122.41,122.35,8.13778681]
[1769395027755,4.06645036,122.41,122.35,4.05825029]
[1769395028050,4.06645036,122.43,122.37,4.05825029]
[1769395028252,4.06645036,122.43,122.37,8.13778681]
[1769395028253,0.06119136,122.39,122.37,8.13778681]
[1769395028449,4.06645036,122.43,122.37,8.13778681]
[1769395028743,4.06645036,122.43,122.39,0.05496866]
[1769395031655,8.14598688,122.42,122.35,8.13778681]
[1769395031950,4.06645036,122.46,122.39,4.07953652]
[1769395032145,4.06645036,122.46,122.4,4.07953652]
[1769395032747,8.14598688,122.49,122.42,4.05825029]
[1769395032947,4.06645036,122.49,122.43,4.07953652]
[1769395033453,4.06645036,122.49,122.42,8.13778681]
[1769395033849,11.42355036,122.49,122.42,8.13778681]
[1769395034046,11.42355036,122.49,122.43,4.07953652]
[1769395034550,4.06645036,122.49,122.43,4.07953652]
[1769395034759,4.06645036,122.48,122.41,8.13778681]
[1769395035249,4.06645036,122.48,122.42,4.07953652]
[1769395035443,4.06645036,122.48,122.43,4.07953652]
[1769395035645,7.357,122.49,122.43,8.19173318]
[1769395036653,4.27124583,122.48,122.43,0.05394637]
[1769395037645,4.27124583,122.47,122.43,0.05394637]
[1769395038256,11.62964583,122.47,122.43,0.05394637]
[1769395039158,8.35078235,122.46,122.39,8.54682634]
[1769395039555,4.27124583,122.44,122.37,8.54682634]
[1769395039757,8.35078235,122.43,122.37,4.46728982]
[1769395040751,0.06256172,122.41,122.37,4.46728982]
[1769395046967,8.35078235,122.45,122.38,4.46728982]
[1769395047265,4.07953652,122.46,122.39,8.54682634]
[1769395047664,15.70958235,122.46,122.39,4.46728982]
[1769395047862,4.07953652,122.43,122.36,4.46728982]
[1769395048166,8.35078235,122.43,122.36,4.46728982]
[1769395048366,8.35078235,122.43,122.38,0.06168831]
[1769395050378,4.27124583,122.43,122.38,0.06168831]
[1769395050574,4.07953652,122.44,122.38,4.52897813]
[1769395050778,8.35078235,122.45,122.38,4.52897813]
[1769395052769,8.35078235,122.45,122.38,8.60851465]
[1769395053877,8.35078235,122.45,122.38,4.52897813]
[1769395054478,4.07953652,122.45,122.39,4.46035808]
[1769395054972,8.692767,122.46,122.39,8.5398946]
[1769395055177,16.050467,122.48,122.41,4.46035808]
[1769395055477,16.050467,122.48,122.41,4.51343865]
[1769395055674,8.692767,122.47,122.41,4.51343865]
[1769395057684,8.6919002,122.47,122.41,4.51343865]
[1769395060082,4.07866972,122.46,122.41,4.51343865]
[1769395061076,16.0507002,122.46,122.41,0.05308057]
[1769395061272,4.61323048,122.45,122.41,0.05308057]
[1769395063982,16.0496002,122.48,122.41,4.51343865]
[1769395064281,8.6919002,122.47,122.41,4.51343865]
[1769395064877,16.0499002,122.47,122.41,4.46035808]
[1769395065282,16.0499002,122.47,122.43,0.05569207]
[1769395066270,8.6919002,122.45,122.39,4.46035808]
[1769395066679,8.6919002,122.44,122.37,4.46035808]
[1769395066882,8.6919002,122.43,122.37,4.46035808]
[1769395067680,0.05579737,122.41,122.37,4.46035808]
[1769395067875,0.05579737,122.41,122.35,134.38035808]
[1769395068483,0.05579737,122.41,122.35,4.46035808]
[1769395069284,0.05579737,122.41,122.36,4.46035808]
[1769395072686,0.05579737,122.41,122.36,8.5390278]
[1769395075389,0.05579737,122.41,122.36,4.46035808]
[1769395077390,8.74769757,122.41,122.35,7.3649]
[1769395077695,4.61323048,122.4,122.34,4.46035808]
[1769395078496,0.05354954,122.38,122.34,4.46035808]
[1769395079892,4.61323048,122.45,122.36,4.46035808]
[1769395080091,4.61323048,122.45,122.38,4.46035808]
[1769395080595,4.07866972,122.44,122.38,4.46035808]
[1769395080791,4.07866972,122.43,122.38,4.46035808]
[1769395080991,8.6919002,122.42,122.36,4.46035808]
[1769395081593,4.07866972,122.39,122.33,4.46035808]
[1769395081787,4.61323048,122.4,122.33,4.46035808]
[1769395081788,0.0613952,122.4,122.33,4.46035808]
[1769395081995,0.0613952,122.4,122.36,4.46035808]
[1769395082191,4.07866972,122.42,122.36,4.46035808]
[1769395082895,0.05476124,122.4,122.36,4.46035808]
[1769395083397,0.00049885,122.4,122.37,4.07866972]
[1769395083593,0.00049885,122.4,122.37,8.90226044]
[1769395083796,0.00049885,122.4,122.37,8.95930492]
[1769395086295,0.00049885,122.4,122.38,4.82359072]
[1769395086797,4.61323048,122.44,122.38,8.90226044]
[1769395087697,4.61323048,122.44,122.38,4.82359072]
[1769395088197,4.61323048,122.44,122.4,0.05955764]
[1769395090096,8.93067104,122.43,122.36,99.64359072]
[1769395090291,4.85200132,122.43,122.37,4.82359072]
[1769395090493,0.05929365,122.43,122.38,4.82359072]
[1769395093894,4.13796337,122.43,122.38,4.82359072]
[1769395094701,8.98996469,122.43,122.36,103.72226044]
[1769395094899,8.93067104,122.42,122.36,4.82359072]
[1769395095701,0.05572663,122.4,122.36,4.82359072]
[1769395099106,4.81913875,122.4,122.34,4.82079066]
[1769395099701,16.26010847,122.4,122.34,4.82079066]
[1769395099895,4.76341212,122.39,122.32,215.39946038]
[1769395100098,4.07866972,122.39,122.34,4.82079066]
[1769395100404,4.76341212,122.4,122.34,4.82079066]
[1769395100804,0.05315859,122.38,122.34,4.82079066]
[1769395102304,4.81657071,122.38,122.31,4.82079066]
[1769395102496,8.89524043,122.38,122.31,4.82079066]
[1769395102699,4.81657071,122.38,122.31,4.82079066]
[1769395102898,8.84208184,122.38,122.31,4.82079066]
[1769395103306,0.05525837,122.36,122.31,4.82079066]
[1769395107610,8.89734021,122.36,122.29,214.50079066]
[1769395107909,8.89734021,122.36,122.3,4.82079066]
[1769395108409,16.26214021,122.36,122.3,4.82079066]
[1769395108610,12.18347049,122.36,122.3,4.82079066]
[1769395108810,4.07866972,122.35,122.3,4.82079066]
[1769395109012,16.26214021,122.36,122.3,4.82079066]
[1769395109814,8.84208184,122.35,122.28,215.40079066]
[1769395110110,8.84208184,122.35,122.29,4.82079066]
[1769395110309,8.84208184,122.37,122.3,4.82079066]
[1769395110705,4.76341212,122.37,122.31,4.87776454]
[1769395111407,8.84208184,122.37,122.31,4.87776454]
[1769395111607,16.20618184,122.37,122.31,4.87776454]
[1769395112012,4.07866972,122.36,122.31,4.87776454]
[1769395112709,4.07866972,122.34,122.28,4.82079066]
[1769395113607,4.76341212,122.35,122.28,4.82079066]
[1769395114110,0.05423287,122.33,122.28,4.82079066]
[1769395114305,0.05423287,122.33,122.29,9.0665546]
[1769395114512,0.05423287,122.33,122.26,210.76]
[1769395114513,16.0971854,122.37,122.3,4.98788488]
[1769395114911,4.07866972,122.4,122.33,4.98788488]
[1769395115212,4.07866972,122.4,122.34,4.98788488]
[1769395115608,8.7328854,122.41,122.34,4.98788488]
[1769395115811,4.65421568,122.41,122.35,4.98788488]
[1769395116506,16.0946854,122.41,122.34,4.07866972]
[1769395116708,4.65421568,122.4,122.33,4.98788488]
[1769395117001,8.7328854,122.4,122.33,9.0665546]
[1769395117411,4.65421568,122.39,122.32,4.07866972]
[1769395117616,4.65421568,122.37,122.31,9.0665546]
[1769395117915,4.65421568,122.37,122.31,4.98788488]
[1769395119613,8.74024215,122.37,122.31,4.98788488]
[1769395121117,16.10314215,122.39,122.31,9.07391135]
[1769395121511,12.01711568,122.39,122.31,4.98788488]
[1769395121716,4.08602647,122.38,122.31,9.07391135]
[1769395122721,4.08602647,122.38,122.32,4.98788488]
[1769395123618,4.08602647,122.36,122.3,4.98788488]
[1769395126019,4.65421568,122.35,122.28,9.07391135]
[1769395126522,4.65421568,122.35,122.29,4.98788488]
[1769395129122,4.65421568,122.35,122.31,0.05230791]
[1769395133431,8.74024215,122.37,122.31,0.05230791]
[1769395134927,4.65421568,122.36,122.31,0.05230791]
[1769395142732,4.65421568,122.36,122.31,5.04019279]
[1769395142928,4.65421568,122.42,122.32,4.98788488]
[1769395143234,4.65421568,122.4,122.33,9.07391135]
[1769395143432,4.65421568,122.4,122.34,8.72113123]
[1769395145031,4.65421568,122.4,122.35,4.63510476]
[1769395145631,4.65421568,122.4,122.35,8.72113123]
[1769395146838,5.02952883,122.42,122.35,8.72113123]
[1769395147133,5.02952883,122.42,122.36,8.72113123]
[1769395147333,9.1155553,122.41,122.34,8.72113123]
[1769395148633,5.02952883,122.41,122.34,8.72113123]
[1769395148834,12.39122883,122.41,122.34,8.72113123]
[1769395150141,16.4772553,122.41,122.34,8.72113123]
[1769395150730,12.39122883,122.41,122.34,8.72113123]
[1769395152039,5.02952883,122.4,122.34,4.63510476]
[1769395152239,5.02952883,122.4,122.34,8.72113123]
[1769395152833,5.02952883,122.4,122.35,4.08602647]
[1769395153034,5.02952883,122.4,122.34,8.72113123]
[1769395154140,5.02952883,122.4,122.35,8.72113123]
[1769395154343,5.02952883,122.42,122.36,4.63510476]
[1769395154742,5.02952883,122.42,122.36,8.72113123]
[1769395155142,5.02952883,122.42,122.37,4.08602647]
[1769395155339,5.02952883,122.42,122.37,8.72113123]
[1769395155544,5.02952883,122.42,122.38,4.08602647]
[1769395155736,5.02952883,122.44,122.38,4.08602647]
[1769395155937,5.02952883,122.44,122.39,4.08602647]
[1769395159144,5.02952883,122.44,122.39,8.89149267]
[1769395162452,4.89325732,122.46,122.4,4.8054662]
[1769395162650,4.89325732,122.46,122.4,8.89149267]
[1769395164248,4.89325732,122.45,122.4,4.8054662]
[1769395164954,4.89325732,122.45,122.39,4.08602647]
[1769395165452,4.89325732,122.45,122.38,8.89149267]
[1769395165753,4.89325732,122.45,122.39,4.8054662]
[1769395167050,4.89325732,122.45,122.39,8.89149267]
[1769395168954,12.25145732,122.47,122.41,4.8054662]
[1769395170359,4.89325732,122.46,122.41,4.8054662]
[1769395172456,4.89325732,122.46,122.4,4.08602647]
[1769395172670,4.89325732,122.45,122.39,8.89149267]
[1769395172860,4.89325732,122.45,122.39,4.8054662]
[1769395173162,4.89325732,122.45,122.39,8.89149267]
[1769395173753,4.89325732,122.45,122.41,0.05285057]
[1769395190966,8.97198012,122.45,122.41,0.05285057]
[1769395191173,8.8452775,122.42,122.35,9.01513935]
[1769395191374,4.7665547,122.42,122.36,9.01513935]
[1769395192561,0.05345261,122.4,122.36,9.01513935]
[1769395192872,0.05345261,122.4,122.36,16.37943935]
[1769395193273,0.05345261,122.4,122.36,4.93641655]
[1769395193974,0.05345261,122.4,122.36,9.01513935]
[1769395194174,0.05345261,122.4,122.36,4.93641655]
[1769395194672,0.05345261,122.4,122.36,12.30071655]
[1769395194972,0.05345261,122.4,122.36,4.93641655]
[1769395197170,4.7665547,122.42,122.37,9.01513935]
[1769395197368,4.7665547,122.42,122.37,4.93641655]
[1769395198478,4.7665547,122.41,122.35,9.01513935]
[1769395198778,4.7665547,122.41,122.36,4.93641655]
[1769395200975,4.7665547,122.41,122.37,0.05212042]
[1769395214382,5.03982548,122.43,122.38,9.34939041]
[1769395214583,7.3586,122.46,122.39,9.34939041]
[1769395214584,5.03982548,122.45,122.39,9.34939041]
[1769395214979,5.03982548,122.45,122.39,16.71189041]
[1769395215181,5.03982548,122.45,122.4,5.27066761]
[1769395215388,5.03982548,122.45,122.4,9.34939041]
[1769395215883,9.11854828,122.47,122.4,9.34939041]
[1769395216186,7.3577,122.48,122.4,9.34939041]
[1769395216187,5.03982548,122.46,122.4,5.27066761]
[1769395216386,5.03982548,122.45,122.4,5.27066761]
[1769395216992,5.03982548,122.45,122.4,12.63226761]
[1769395217784,5.03982548,122.45,122.41,0.05256948]
[1769395217990,9.05065349,122.47,122.41,5.13423502]
[1769395218182,4.97193069,122.47,122.41,5.13423502]
[1769395218378,4.97193069,122.47,122.41,16.57425782]
[1769395218596,4.97193069,122.5,122.44,9.16038834]
[1769395218885,4.97193069,122.5,122.45,16.51918834]
[1769395219091,4.97193069,122.52,122.46,9.16038834]
[1769395219588,4.97193069,122.52,122.46,9.2182829]
[1769395221389,4.97193069,122.52,122.46,5.1395601]
[1769395221892,9.05065349,122.52,122.46,5.1395601]
[1769395222393,4.97193069,122.52,122.46,9.2182829]
[1769395222590,4.97193069,122.52,122.47,4.0787228]
[1769395223294,4.97193069,122.52,122.47,16.51828834]
[1769395225209,4.97193069,122.52,122.46,0.05789456]
[1769395225400,4.97193069,122.5,122.46,0.05789456]
[1769395225695,4.97193069,122.49,122.46,0.05789456]
[1769395225893,4.97193069,122.49,122.43,9.16038834]
[1769395226391,4.97193069,122.49,122.46,0.05729828]
[1769395228094,4.0787228,122.5,122.46,0.05729828]
[1769395228292,9.05065349,122.51,122.46,0.05729828]
[1769395229001,7.3546,122.53,122.46,5.13896382]
[1769395229002,4.97193069,122.52,122.46,5.13896382]
[1769395229298,4.97193069,122.51,122.46,5.13896382]
[1769395229893,4.97193069,122.51,122.46,0.05729828]
[1769395230200,9.05065349,122.49,122.42,16.52088834]
[1769395230900,9.05065349,122.49,122.43,5.08166554]
[1769395231099,4.97193069,122.49,122.43,5.08166554]
[1769395231603,0.05272829,122.47,122.43,5.08166554]
[1769395232297,0.05272829,122.47,122.42,11.4392228]
[1769395232499,0.05272829,122.47,122.42,7.3605]
[1769395232693,0.05272829,122.47,122.42,12.44216554]
[1769395234100,0.05272829,122.47,122.42,16.52088834]
[1769395236305,0.05272829,122.47,122.43,5.19492633]
[1769395236498,0.05272829,122.47,122.43,9.27364913]
[1769395239511,4.96644833,122.5,122.44,5.19492633]
[1769395239706,4.96644833,122.51,122.45,9.27364913]
[1769395241608,4.96644833,122.51,122.45,9.27036334]
[1769395242311,4.96644833,122.51,122.45,5.19492633]
[1769395246512,4.96644833,122.48,122.43,5.19492633]
[1769395248114,4.96644833,122.52,122.43,5.19492633]
[1769395248415,9.04188534,122.52,122.45,5.19492633]
[1769395248615,4.96644833,122.52,122.46,9.27036334]
[1769395249324,4.96644833,122.52,122.46,16.62866334]
[1769395250212,4.96644833,122.54,122.47,16.62806334]
[1769395252823,4.96644833,122.54,122.48,5.19492633]
[1769395253312,4.96644833,122.54,122.48,9.27036334]
[1769395253514,9.04188534,122.54,122.48,5.19492633]
[1769395253714,4.96644833,122.53,122.48,5.19492633]
[1769395254212,4.96644833,122.52,122.46,5.19492633]
[1769395255722,4.96644833,122.52,122.46,9.27036334]
[1769395256716,16.39568534,122.54,122.48,5.19492633]
[1769395257116,4.96644833,122.53,122.48,5.19492633]
[1769395263528,5.18016544,122.52,122.46,8.9534059]
[1769395264728,5.18016544,122.49,122.44,4.87796889]
[1769395270623,5.18016544,122.49,122.43,4.07543701]
[1769395270829,5.18016544,122.49,122.42,16.3140059]
[1769395271029,5.18016544,122.49,122.43,4.87796889]
[1769395272626,5.18016544,122.49,122.43,8.9534059]
[1769395274134,5.18016544,122.49,122.43,4.87796889]
[1769395276935,4.88201844,122.48,122.43,4.87796889]
[1769395280836,4.88201844,122.46,122.41,298.37302924]
[1769395281035,8.95745545,122.45,122.39,5.28557602]
[1769395281833,8.95745545,122.44,122.39,5.28557602]
[1769395282038,4.88201844,122.43,122.38,215.18]
[1769395282240,4.07543701,122.42,122.37,5.28557602]
[1769395282436,8.95745545,122.41,122.35,220.92557602]
[1769395283336,8.95745545,122.41,122.35,215.64]
[1769395283337,4.88201844,122.4,122.35,215.64]
[1769395284144,4.88201844,122.4,122.35,220.92557602]
[1769395285937,4.07543701,122.41,122.35,220.92557602]
[1769395286137,8.95745545,122.42,122.35,220.92557602]
[1769395290349,4.88201844,122.41,122.35,220.92557602]
[1769395293349,8.95745545,122.41,122.35,220.92557602]
[1769395295753,4.88201844,122.41,122.36,5.34612976]
[1769395297853,8.95745545,122.41,122.36,5.34612976]
[1769395298349,4.88201844,122.41,122.36,5.34612976]
[1769395299456,9.34284679,122.43,122.36,5.34612976]
[1769395299650,9.34284679,122.43,122.37,5.34612976]
[1769395301350,5.26740978,122.43,122.38,5.34612976]
[1769395301554,5.26740978,122.43,122.38,9.42664028]
[1769395304555,5.26740978,122.43,122.38,5.34612976]
[1769395307551,12.62790978,122.43,122.38,5.34612976]
[1769395309448,12.62850978,122.42,122.36,9.42664028]
[1769395309652,9.3479203,122.42,122.36,5.34612976]
[1769395310955,7.3616,122.41,122.36,5.34612976]
[1769395314764,7.3616,122.41,122.35,219.72051052]
[1769395314765,7.3623,122.4,122.35,219.72051052]
[1769395314959,12.62970978,122.4,122.35,215.64]
[1769395315263,7.3628,122.39,122.35,215.64]
[1769395315466,7.3628,122.39,122.34,5.34612976]
[1769395315663,5.26740978,122.39,122.32,9.42664028]
[1769395315851,12.63150978,122.37,122.32,5.34612976]
[1769395316164,9.3479203,122.37,122.31,224.36]
[1769395316358,5.26740978,122.36,122.31,224.36]
[1769395316755,7.3653,122.35,122.3,5.34612976]
[1769395320162,12.63270978,122.35,122.3,5.34612976]
[1769395322968,7.3659,122.34,122.28,4.08051052]
[1769395323865,5.31316216,122.33,122.27,228.82051052]
[1769395324063,0.06088023,122.32,122.3,0.06260507]
[1769395326367,5.37404239,122.32,122.27,224.74]
[1769395327065,5.37404239,122.32,122.25,4.95427215]
[1769395327066,5.31316216,122.31,122.25,4.95427215]
[1769395327469,9.39367268,122.31,122.25,4.95427215]
[1769395327664,5.31316216,122.3,122.25,4.95427215]
[1769395327865,5.36898832,122.29,122.23,9.03478267]
[1769395328072,5.36898832,122.29,122.23,4.95427215]
[1769395328664,5.31316216,122.28,122.22,226.5]
[1769395329164,5.31316216,122.28,122.22,231.45427215]
[1769395329571,0.06057102,122.26,122.22,4.95427215]
[1769395329771,0.06057102,122.26,122.22,9.03478267]
[1769395330971,5.31316216,122.28,122.23,4.08051052]
[1769395331867,5.31316216,122.28,122.22,9.03478267]
[1769395332866,5.31316216,122.28,122.23,4.08051052]
[1769395333670,5.31316216,122.28,122.23,8.99636079]
[1769395339267,5.07893453,122.32,122.26,8.7401083]
[1769395339672,5.07893453,122.31,122.26,4.65959778]
[1769395339871,5.07893453,122.31,122.24,8.7401083]
[1769395339872,5.07893453,122.3,122.24,8.7401083]
[1769395340175,5.07893453,122.29,122.24,4.65959778]
[1769395340371,5.07893453,122.28,122.22,8.70409893]
[1769395341368,5.07893453,122.28,122.23,8.66850317]
[1769395341668,5.07893453,122.3,122.24,4.08051052]
[1769395342375,5.07893453,122.3,122.25,8.63331626]
[1769395342676,11.44781052,122.32,122.25,8.63331626]
[1769395342677,12.44623453,122.32,122.26,4.08051052]
[1769395343266,5.07893453,122.31,122.25,8.63331626]
[1769395345078,5.07893453,122.31,122.26,4.08051052]
[1769395345871,5.07893453,122.31,122.25,4.55280574]
[1769395346072,5.07893453,122.29,122.24,4.08051052]
[1769395346279,5.07893453,122.29,122.23,4.08051052]
[1769395346971,5.07893453,122.29,122.22,4.44965143]
[1769395347168,5.07893453,122.28,122.22,4.44965143]
[1769395347377,5.07893453,122.28,122.22,8.53016195]
[1769395347675,16.52794505,122.3,122.23,4.38284148]
[1769395348078,12.44783453,122.29,122.23,4.38284148]
[1769395351583,5.07893453,122.28,122.23,4.38284148]
[1769395360695,5.07893453,122.28,122.2,8.79740021]
[1769395360696,7.3679,122.31,122.25,3.95428146]
[1769395360895,16.30373564,122.31,122.25,3.95428146]
[1769395361099,12.22322512,122.31,122.25,3.95428146]
[1769395361597,12.22322512,122.31,122.26,3.92635859]
[1769395362998,4.85532512,122.34,122.28,4.08051052]
[1769395363194,4.85532512,122.34,122.29,7.95198185]
[1769395363598,4.85532512,122.34,122.29,7.95751758]
[1769395364195,12.22022512,122.36,122.3,7.93054586]
[1769395364794,12.22072512,122.35,122.27,3.84449961]
[1769395364996,4.85532512,122.34,122.28,3.84449961]
[1769395365298,4.85532512,122.31,122.25,3.81783769]
[1769395365699,4.85532512,122.31,122.25,7.90388394]
[1769395365897,4.85532512,122.31,122.26,7.90388394]
[1769395366103,4.85532512,122.33,122.27,7.90388394]
[1769395367901,4.85532512,122.33,122.27,3.81783769]
[1769395368298,12.22182512,122.33,122.27,3.81783769]
[1769395368597,8.94137137,122.33,122.27,3.81783769]
[1769395368792,4.85532512,122.32,122.27,3.81783769]
[1769395370002,12.22242512,122.32,122.27,3.81783769]
[1769395371000,16.30907137,122.31,122.25,3.68905193]
[1769395371204,4.85532512,122.3,122.25,3.68905193]
[1769395381007,4.85532512,122.28,122.22,228.0]
[1769395381208,8.94137137,122.27,122.2,3.45275927]
[1769395381408,8.94137137,122.26,122.2,3.45275927]
[1769395381905,4.85532512,122.25,122.19,4.08604625]
[1769395382108,16.31267137,122.25,122.18,235.81420088]
[1769395382305,16.31267137,122.25,122.19,3.40868903]
[1769395384210,16.31267137,122.25,122.14,154.17430146]
[1769395384211,8.40216939,122.21,122.14,3.34229473]
[1769395384514,8.40216939,122.21,122.15,3.34229473]
[1769395386416,8.40216939,122.2,122.13,235.08070799]
[1769395386715,8.40216939,122.2,122.14,3.30070799]
[1769395386918,4.31612314,122.15,122.1,307.95423983]
[1769395387217,8.40216939,122.13,122.06,4.08604625]
[1769395387417,4.31612314,122.11,122.05,130.14]
[1769395387612,8.40216939,122.11,122.05,130.14]
[1769395388317,4.31612314,122.14,122.06,3.26007109]
[1769395388518,4.08604625,122.13,122.06,7.34611734]
[1769395388714,4.31612314,122.14,122.07,3.26007109]
[1769395388715,8.40216939,122.14,122.07,3.26007109]
[1769395388919,8.40216939,122.16,122.08,7.34611734]
[1769395389210,8.40216939,122.16,122.08,3.26007109]
[1769395389211,4.31612314,122.15,122.08,3.26007109]
[1769395389412,8.40216939,122.15,122.08,3.26007109]
[1769395389718,4.08604625,122.14,122.08,3.26007109]
[1769395390019,8.40216939,122.13,122.06,3.24010203]
[1769395390716,4.31612314,122.12,122.06,3.24010203]
[1769395390917,8.40216939,122.12,122.06,3.24010203]
[1769395391216,8.40216939,122.11,122.05,130.14]
[1769395392113,4.31612314,122.11,122.05,130.14]
[1769395392614,8.40216939,122.1,122.04,3.22036234]
[1769395392812,8.40216939,122.05,121.97,3.18156054]
[1769395393011,4.31612314,122.07,122.0,3.18156054]
[1769395393326,4.31612314,122.07,122.0,7.26760679]
[1769395393714,8.40216939,122.07,122.0,7.26760679]
[1769395393914,4.31612314,122.07,122.01,3.16249325]
[1769395397017,3.99793368,122.1,122.02,7.18288691]